bitfinex/quotes_BTCUSD_20250903
["timestamp","ask_amount","ask_price","bid_price","bid_amount"]
[1756923604589,1.05066947,112460.0,112450.0,0.00353678]
[1756923605161,0.69161024,112460.0,112450.0,0.00353678]
[1756923605721,1.39066947,112460.0,112450.0,0.00353678]
[1756923606158,1.03161024,112460.0,112450.0,0.00353678]
[1756923606448,0.67255101,112460.0,112450.0,0.00353678]
[1756923606697,1.03161024,112460.0,112450.0,0.00658678]
[1756923607261,1.03161024,112460.0,112450.0,0.00353678]
[1756923607520,1.02950024,112460.0,112450.0,0.00658678]
[1756923610172,0.67044101,112460.0,112450.0,0.00658678]
[1756923610410,1.02950024,112460.0,112450.0,0.00658678]
[1756923610576,0.67044101,112460.0,112450.0,0.00658678]
[1756923610783,1.02950024,112460.0,112450.0,0.00658678]
[1756923611049,0.51984101,112460.0,112450.0,0.00658678]
[1756923611475,0.67044101,112460.0,112450.0,0.36564601]
[1756923611696,0.17984101,112460.0,112450.0,0.54350283]
[1756923613087,0.17984101,112460.0,112450.0,0.36564601]
[1756923614372,0.17984101,112460.0,112450.0,0.00658678]
[1756923615588,0.54098024,112460.0,112450.0,0.00353678]
[1756923615799,0.53890024,112460.0,112450.0,0.00651678]
[1756923616060,0.17984101,112460.0,112450.0,0.1843736]
[1756923616295,0.17984101,112460.0,112450.0,0.54343283]
[1756923618746,0.17984101,112460.0,112450.0,0.1843736]
[1756923618964,0.17984101,112460.0,112450.0,0.36557601]
[1756923619828,0.17984101,112460.0,112450.0,0.54343283]
[1756923620310,0.17984101,112460.0,112450.0,0.36557601]
[1756923621081,0.17984101,112460.0,112450.0,0.00651678]
[1756923621542,0.54403024,112460.0,112450.0,0.00144678]
[1756923622130,0.18497101,112460.0,112450.0,0.00144678]
[1756923622397,0.54403024,112460.0,112450.0,0.00144678]
[1756923623223,1.24308947,112460.0,112450.0,0.00144678]
[1756923624002,0.88403024,112460.0,112450.0,0.00144678]
[1756923625469,0.88098024,112460.0,112450.0,0.00352678]
[1756923625876,1.03158024,112460.0,112450.0,0.00352678]
[1756923626284,0.88098024,112460.0,112450.0,0.00352678]
[1756923626719,1.02950024,112460.0,112450.0,0.00650678]
[1756923626938,1.03158024,112460.0,112450.0,0.00352678]
[1756923628083,0.88098024,112460.0,112450.0,0.00352678]
[1756923628249,1.03158024,112460.0,112450.0,0.00352678]
[1756923628713,0.88098024,112460.0,112450.0,0.00352678]
[1756923628936,1.03158024,112460.0,112450.0,0.00650678]
[1756923629381,1.03158024,112460.0,112450.0,0.00352678]
[1756923629994,0.88098024,112460.0,112450.0,0.00352678]
[1756923630204,1.02950024,112460.0,112450.0,0.00650678]
[1756923630539,1.03158024,112460.0,112450.0,0.00352678]
[1756923630949,0.52192101,112460.0,112450.0,0.00352678]
[1756923631175,1.03158024,112460.0,112450.0,0.00352678]
[1756923631421,1.03158024,112460.0,112450.0,0.00650678]
[1756923631549,0.002,112460.0,112450.0,0.00650678]
[1756923631751,0.17984101,112460.0,112450.0,0.36778922]
[1756923631961,0.17984101,112460.0,112450.0,0.00650678]
[1756923632184,0.17984101,112460.0,112450.0,0.36778922]
[1756923632390,0.17984101,112460.0,112450.0,0.00650678]
[1756923632645,0.18192101,112460.0,112450.0,0.40650678]
[1756923632782,0.18192101,112460.0,112450.0,0.00650678]
[1756923634659,0.18192101,112460.0,112450.0,0.00352678]
[1756923634863,0.18497101,112460.0,112450.0,0.00144678]
[1756923635142,0.18192101,112460.0,112450.0,0.00352678]
[1756923635294,0.18192101,112460.0,112450.0,0.00650678]
[1756923636531,0.18192101,112460.0,112450.0,0.00352678]
[1756923636917,0.18497101,112460.0,112450.0,0.00144678]
[1756923637142,0.66383559,112460.0,112450.0,0.00144678]
[1756923637338,1.00383559,112460.0,112450.0,0.00144678]
[1756923638653,1.09575158,112460.0,112450.0,0.00144678]
[1756923638862,0.616887,112460.0,112450.0,0.00144678]
[1756923639085,1.09575158,112460.0,112450.0,0.00144678]
[1756923640007,0.764397,112460.0,112450.0,0.00345678]
[1756923640474,0.52499101,112460.0,112450.0,0.00144678]
[1756923640710,0.67248101,112460.0,112450.0,0.00345678]
[1756923641116,0.67555101,112460.0,112450.0,0.00144678]
[1756923642368,1.15441559,112460.0,112450.0,0.00144678]
[1756923643702,0.67555101,112460.0,112450.0,0.00144678]
[1756923643839,1.15441559,112460.0,112450.0,0.00144678]
[1756923644211,1.24633158,112460.0,112450.0,0.00144678]
[1756923646747,1.09577158,112460.0,112450.0,0.00144678]
[1756923647146,1.24633158,112460.0,112450.0,0.00144678]
[1756923651930,1.32869241,112460.0,112450.0,0.00144678]
[1756923652159,1.35267241,112460.0,112450.0,0.00144678]
[1756923652346,0.87380783,112460.0,112450.0,0.00144678]
[1756923652558,1.20211241,112460.0,112450.0,0.00144678]
[1756923652783,1.27031158,112460.0,112450.0,0.00144678]
[1756923654358,0.791447,112460.0,112450.0,0.00144678]
[1756923654560,1.27031158,112460.0,112450.0,0.00144678]
[1756923656163,0.791447,112460.0,112450.0,0.00144678]
[1756923656335,1.35547557,112460.0,112450.0,0.00144678]
[1756923656538,1.27031158,112460.0,112450.0,0.00144678]
[1756923656738,1.2912504,112460.0,112450.0,0.00144678]
[1756923658131,0.67766022,112450.0,112440.0,0.0004]
[1756923658334,0.94411621,112450.0,112440.0,0.0004]
[1756923658554,0.94925621,112450.0,112440.0,0.0004]
[1756923658762,1.0411722,112450.0,112440.0,0.0004]
[1756923658962,1.04995147,112450.0,112440.0,0.0004]
[1756923659595,1.05095147,112450.0,112440.0,0.0014]
[1756923660185,1.38995147,112450.0,112440.0,0.0004]
[1756923660371,1.43278252,112450.0,112440.0,0.0014]
[1756923662528,1.28222252,112450.0,112440.0,0.0014]
[1756923662746,1.43278252,112450.0,112440.0,0.0014]
[1756923663463,1.28222252,112450.0,112440.0,0.0014]
[1756923663660,1.43278252,112450.0,112440.0,0.0014]
[1756923664886,0.80335794,112450.0,112440.0,0.0014]
[1756923665067,1.43278252,112450.0,112440.0,0.0014]
[1756923665470,1.40880252,112450.0,112440.0,0.0014]
[1756923665878,0.77111208,112450.0,112440.0,0.00653]
[1756923666107,1.24997666,112450.0,112440.0,0.00653]
[1756923666530,0.77111208,112450.0,112440.0,0.00653]
[1756923666743,1.24997666,112450.0,112440.0,0.00653]
[1756923666964,1.09941666,112450.0,112440.0,0.00653]
[1756923667190,1.24997666,112450.0,112440.0,0.00653]
[1756923667643,0.54134264,112440.0,112430.0,0.0026236]
[1756923667916,0.69190264,112440.0,112430.0,0.0004]
[1756923668149,0.69190264,112440.0,112430.0,0.00241]
[1756923668293,0.54134264,112440.0,112430.0,0.00241]
[1756923668572,0.54134264,112440.0,112430.0,0.0046336]
[1756923668749,0.69190264,112440.0,112430.0,0.0046336]
[1756923668954,0.69390264,112440.0,112430.0,0.0056336]
[1756923669222,0.69390264,112440.0,112430.0,0.00341]
[1756923669826,0.54334264,112440.0,112430.0,0.0078736]
[1756923670027,0.69390264,112440.0,112430.0,0.00565]
[1756923670233,0.69390264,112440.0,112430.0,0.0078736]
[1756923670450,0.69390264,112440.0,112430.0,0.48673818]
[1756923670659,0.69390264,112440.0,112430.0,0.00565]
[1756923670867,0.69390264,112440.0,112430.0,0.0078736]
[1756923672816,0.69390264,112440.0,112430.0,0.00341]
[1756923674668,0.69390264,112440.0,112430.0,0.0056336]
[1756923675026,0.69390264,112440.0,112430.0,0.0078736]
[1756923675245,0.35390264,112440.0,112430.0,0.48673818]
[1756923675457,0.20334264,112440.0,112430.0,0.66240304]
[1756923676985,0.02547,112440.0,112430.0,0.66240304]
[1756923677193,0.20334264,112440.0,112430.0,0.81292304]
[1756923677830,0.20334264,112440.0,112430.0,0.66240304]
[1756923678045,0.20334264,112440.0,112430.0,0.81292304]
[1756923678180,0.20334264,112440.0,112430.0,0.15617]
[1756923678395,0.20334264,112440.0,112430.0,0.81292304]
[1756923678816,0.20334264,112440.0,112430.0,1.21292304]
[1756923679205,0.20334264,112440.0,112430.0,1.06240304]
[1756923679405,0.20334264,112440.0,112430.0,1.21292304]
[1756923680684,0.20334264,112440.0,112430.0,0.88227458]
[1756923680919,0.20838264,112440.0,112430.0,0.40341]
[1756923683116,0.20334264,112440.0,112430.0,0.58129846]
[1756923684076,0.20334264,112440.0,112430.0,0.15393]
[1756923684498,0.20334264,112440.0,112430.0,0.00341]
[1756923684712,0.20334264,112440.0,112430.0,0.73181846]
[1756923686002,0.20838264,112440.0,112430.0,0.55393]
[1756923686217,0.20334264,112440.0,112430.0,0.55393]
[1756923686937,0.20334264,112440.0,112430.0,0.73181846]
[1756923687656,0.20334264,112440.0,112430.0,0.33181846]
[1756923688096,0.20334264,112440.0,112430.0,0.73181846]
[1756923688682,0.20334264,112440.0,112430.0,1.21068304]
[1756923688896,0.20334264,112440.0,112430.0,1.21292304]
[1756923689732,0.20334264,112440.0,112430.0,1.03279458]
[1756923690210,0.20334264,112440.0,112430.0,1.21068304]
[1756923691316,0.20838264,112440.0,112430.0,0.4014]
[1756923691484,0.20838264,112440.0,112430.0,1.20863304]
[1756923691683,0.20838264,112440.0,112430.0,1.21061304]
[1756923691840,0.20334264,112440.0,112430.0,1.21061304]
[1756923693574,0.20334264,112440.0,112430.0,1.03272458]
[1756923694011,0.20098578,112440.0,112430.0,1.03272458]
[1756923694209,0.20407578,112440.0,112430.0,1.03272458]
[1756923694907,0.20407578,112440.0,112430.0,1.21061304]
[1756923695140,0.20602578,112440.0,112430.0,1.21061304]
[1756923695374,0.20602578,112440.0,112430.0,1.03272458]
[1756923695642,0.20602578,112440.0,112430.0,1.21061304]
[1756923695874,0.20098578,112440.0,112430.0,1.21061304]
[1756923696566,0.20407578,112440.0,112430.0,1.21061304]
[1756923696743,0.20602578,112440.0,112430.0,1.03272458]
[1756923696955,0.68489036,112440.0,112430.0,0.0014]
[1756923697158,1.02489036,112440.0,112430.0,0.0014]
[1756923697568,0.90537548,112440.0,112430.0,0.0014]
[1756923697989,0.54602578,112440.0,112430.0,0.0014]
[1756923698189,0.90537548,112440.0,112430.0,0.0014]
[1756923699043,0.54602578,112440.0,112430.0,0.0014]
[1756923699225,0.90537548,112440.0,112430.0,0.0014]
[1756923699435,1.05585548,112440.0,112430.0,0.0014]
[1756923700337,0.90537548,112440.0,112430.0,0.0014]
[1756923700549,1.05585548,112440.0,112430.0,0.0014]
[1756923700760,0.69650578,112440.0,112430.0,0.0014]
[1756923701023,1.05585548,112440.0,112430.0,0.0014]
[1756923701154,0.54602578,112440.0,112430.0,0.0014]
[1756923701550,1.05585548,112440.0,112430.0,0.0014]
[1756923702327,0.54602578,112440.0,112430.0,0.0056936]
[1756923702494,0.69146578,112440.0,112430.0,0.3650433]
[1756923702704,0.69146578,112440.0,112430.0,0.3628197]
[1756923702902,0.20098578,112440.0,112430.0,0.54070816]
[1756923703492,0.20098578,112440.0,112430.0,0.94070816]
[1756923703928,0.20098578,112440.0,112430.0,0.40347]
[1756923704302,0.20617578,112440.0,112430.0,0.7607497]
[1756923704516,0.20617578,112440.0,112430.0,0.9112297]
[1756923704689,0.20098578,112440.0,112430.0,1.09118816]
[1756923705147,0.20098578,112440.0,112430.0,1.18534415]
[1756923705342,0.20098578,112440.0,112430.0,1.18310415]
[1756923713103,0.20617578,112440.0,112430.0,0.64375599]
[1756923713337,0.20617578,112440.0,112430.0,1.00310569]
[1756923713770,0.20617578,112440.0,112430.0,1.18099415]
[1756923714047,0.20617578,112440.0,112430.0,1.00310569]
[1756923714557,0.20617578,112440.0,112430.0,0.7607497]
[1756923714818,0.20617578,112440.0,112430.0,0.9111897]
[1756923715538,0.20617578,112440.0,112430.0,0.55184]
[1756923715761,0.20617578,112440.0,112430.0,0.15184]
[1756923715977,0.56552548,112440.0,112430.0,0.15184]
[1756923716201,0.56552548,112440.0,112430.0,0.55184]
[1756923717490,0.20617578,112440.0,112430.0,0.55184]
[1756923717680,0.20617578,112440.0,112430.0,0.9111897]
[1756923719174,0.20617578,112440.0,112430.0,1.09114816]
[1756923719399,0.20617578,112440.0,112430.0,0.9132597]
[1756923719948,0.20617578,112440.0,112430.0,0.9111897]
[1756923720064,0.20617578,112440.0,112430.0,0.55184]
[1756923721292,0.20617578,112440.0,112430.0,0.4014]
[1756923721499,0.20617578,112440.0,112430.0,0.55184]
[1756923722222,0.20617578,112440.0,112430.0,0.15184]
[1756923722412,0.90552548,112440.0,112430.0,0.15184]
[1756923722615,0.90552548,112440.0,112430.0,0.0014]
[1756923723386,1.31458791,112440.0,112430.0,0.0014]
[1756923723623,1.35679117,112440.0,112430.0,0.0014]
[1756923723833,0.1976016,112430.0,112420.0,0.0004]
[1756923724045,1.0473513,112430.0,112420.0,0.0004]
[1756923724345,1.0525413,112430.0,112420.0,0.0004]
[1756923725524,1.0545413,112430.0,112420.0,0.0004]
[1756923725777,1.14645729,112430.0,112420.0,0.0004]
[1756923726008,1.14745729,112430.0,112420.0,0.0004]
[1756923726471,1.14645729,112430.0,112420.0,0.0004]
[1756923726889,0.99705729,112430.0,112420.0,0.0004]
[1756923727110,1.14745729,112430.0,112420.0,0.0004]
[1756923727323,1.15797302,112430.0,112420.0,0.0004]
[1756923727550,1.14745729,112430.0,112420.0,0.0004]
[1756923727766,1.14545729,112430.0,112420.0,0.0004]
[1756923728210,0.78610759,112430.0,112420.0,0.0004]
[1756923728437,1.14545729,112430.0,112420.0,0.0004]
[1756923728658,1.14645729,112430.0,112420.0,0.0004]
[1756923732240,1.0545413,112430.0,112420.0,0.0004]
[1756923733482,1.14645729,112430.0,112420.0,0.0004]
[1756923733794,1.0545413,112430.0,112420.0,0.0004]
[1756923734849,0.9041413,112430.0,112420.0,0.0004]
[1756923735079,0.6951916,112430.0,112420.0,0.0004]
[1756923735370,1.0545413,112430.0,112420.0,0.0004]
[1756923738466,0.5447916,112430.0,112420.0,0.0004]
[1756923738705,0.6951916,112430.0,112420.0,0.00239]
[1756923739360,0.6900016,112430.0,112420.0,0.00239]
[1756923739508,0.6951416,112430.0,112420.0,0.0004]
[1756923739712,1.0544913,112430.0,112420.0,0.0004]
[1756923741639,0.17792011,112410.0,112400.0,0.3593497]
[1756923741856,0.17792011,112410.0,112390.0,0.68095081]
[1756923742063,0.18095011,112410.0,112400.0,0.00199]
[1756923742479,0.18095011,112410.0,112400.0,0.3613397]
[1756923743074,0.17792011,112410.0,112400.0,0.3613397]
[1756923743323,0.17892011,112410.0,112400.0,0.53927564]
[1756923743503,0.17892011,112410.0,112400.0,0.93927564]
[1756923744008,0.17892011,112410.0,112400.0,0.7613397]
[1756923744835,0.17892011,112410.0,112400.0,0.9117397]
[1756923745040,0.1879551,112410.0,112400.0,1.08967564]
[1756923745238,0.1899551,112410.0,112400.0,0.7613397]
[1756923745437,0.1950951,112410.0,112400.0,0.5504]
[1756923746078,0.1950951,112410.0,112400.0,0.55239]
[1756923748424,0.1950951,112410.0,112400.0,0.15239]
[1756923748820,0.1950951,112410.0,112400.0,0.55239]
[1756923749987,0.1899551,112410.0,112400.0,0.73032594]
[1756923750186,0.1899551,112410.0,112400.0,0.55239]
[1756923750400,0.1950951,112410.0,112400.0,0.55239]
[1756923751538,0.1950951,112410.0,112400.0,0.73032594]
[1756923751888,0.1950951,112410.0,112400.0,0.55235]
[1756923752102,0.1950951,112410.0,112400.0,0.15235]
[1756923752334,0.1950951,112410.0,112400.0,0.00199]
[1756923752533,0.17793594,112400.0,112390.0,0.5325634]
[1756923752744,0.16859976,112400.0,112390.0,0.62111]
[1756923753354,0.16859976,112400.0,112390.0,0.79906177]
[1756923753558,0.16648976,112400.0,112390.0,0.79906177]
[1756923753753,0.5483048,112410.0,112390.0,0.79906177]
[1756923754024,0.17893594,112400.0,112390.0,0.79906177]
[1756923754447,0.17793594,112400.0,112390.0,0.79906177]
[1756923754731,0.17793594,112400.0,112390.0,1.15841147]
[1756923755186,0.17793594,112400.0,112390.0,1.16065147]
[1756923755395,0.17793594,112400.0,112390.0,1.15841147]
[1756923755570,0.17893594,112400.0,112390.0,1.15841147]
[1756923756010,0.18093594,112400.0,112390.0,1.15841147]
[1756923756379,0.18093594,112400.0,112390.0,0.79906177]
[1756923756590,0.17893594,112400.0,112390.0,1.15841147]
[1756923757123,0.18093594,112400.0,112390.0,1.15841147]
[1756923757539,0.18093594,112400.0,112390.0,0.79906177]
[1756923758002,0.18093594,112400.0,112390.0,0.62111]
[1756923758221,0.18093594,112400.0,112390.0,0.79906177]
[1756923758831,0.18289594,112400.0,112390.0,0.62111]
[1756923759032,0.18609594,112400.0,112390.0,0.55275]
[1756923759882,0.18609594,112400.0,112390.0,0.55076]
[1756923760800,0.18609594,112400.0,112390.0,0.15076]
[1756923761203,0.18609594,112400.0,112390.0,0.55076]
[1756923762008,0.18609594,112400.0,112390.0,0.73082177]
[1756923762213,0.18609594,112400.0,112390.0,0.55287]
[1756923763925,0.18609594,112400.0,112390.0,0.55076]
[1756923764322,0.18609594,112400.0,112390.0,0.15076]
[1756923764729,0.18609594,112400.0,112390.0,0.55076]
[1756923765137,0.18609594,112400.0,112390.0,0.55287]
[1756923766928,0.18609594,112400.0,112390.0,0.0004]
[1756923767177,0.66541735,112400.0,112390.0,0.0004]
[1756923769497,0.18609594,112400.0,112390.0,0.0004]
[1756923769978,0.66541735,112400.0,112390.0,0.0004]
[1756923772176,0.81573735,112400.0,112390.0,0.0004]
[1756923772508,0.66541735,112400.0,112390.0,0.0004]
[1756923772729,0.33641594,112400.0,112390.0,0.0004]
[1756923774388,0.81573735,112400.0,112390.0,0.0004]
[1756923774758,0.33641594,112400.0,112390.0,0.0004]
[1756923775049,0.81573735,112400.0,112390.0,0.0004]
[1756923778056,0.18609594,112400.0,112390.0,0.0004]
[1756923778271,0.33641594,112400.0,112390.0,0.00251]
[1756923778480,0.18609594,112400.0,112390.0,0.00473439]
[1756923778782,0.33445594,112400.0,112390.0,0.00473439]
[1756923778986,0.33641594,112400.0,112390.0,0.00473439]
[1756923779210,0.18093594,112400.0,112390.0,0.66424757]
[1756923779419,0.18093594,112400.0,112390.0,0.66202318]
[1756923779904,0.003,112400.0,112390.0,0.66202318]
[1756923780174,0.18093594,112400.0,112390.0,0.66202318]
[1756923780445,0.003,112400.0,112390.0,0.66202318]
[1756923780900,0.003,112400.0,112390.0,0.75393917]
[1756923781339,0.00060677,112400.0,112390.0,0.81774257]
[1756923781525,0.00060677,112400.0,112390.0,0.76516412]
[1756923781793,0.00060677,112400.0,112390.0,1.24448553]
[1756923783114,0.00060677,112400.0,112390.0,1.39480553]
[1756923783747,0.00060677,112400.0,112390.0,1.24448553]
[1756923783948,0.00060677,112400.0,112390.0,1.39480553]
[1756923784620,0.00060677,112400.0,112390.0,1.24448553]
[1756923784804,0.00060677,112400.0,112390.0,1.39480553]
[1756923785036,0.00060677,112400.0,112390.0,1.39256553]
[1756923785897,0.00060677,112400.0,112390.0,1.39480553]
[1756923786113,0.00060677,112400.0,112390.0,1.24448553]
[1756923786364,0.00060677,112400.0,112390.0,1.39480553]
[1756923787973,0.00060677,112400.0,112390.0,1.39252553]
[1756923789178,0.17854271,112400.0,112390.0,1.39252553]
[1756923789626,0.00371677,112400.0,112390.0,1.39252553]
[1756923789818,0.00371677,112400.0,112390.0,1.24224553]
[1756923790053,0.00060677,112400.0,112390.0,1.39252553]
[1756923791391,0.00060677,112400.0,112390.0,1.32872213]
[1756923791842,0.00060677,112400.0,112390.0,1.17844213]
[1756923792069,0.00060677,112400.0,112390.0,1.32872213]
[1756923793933,0.17854271,112400.0,112390.0,1.32872213]
[1756923794417,0.17854271,112400.0,112390.0,0.84940072]
[1756923794599,0.00060677,112400.0,112390.0,1.32872213]
[1756923796119,0.00060677,112400.0,112390.0,0.69912072]
[1756923796343,0.00060677,112400.0,112390.0,1.32872213]
[1756923796589,0.17854271,112400.0,112390.0,0.84940072]
[1756923796815,0.00371677,112400.0,112390.0,0.84940072]
[1756923797037,0.17854271,112400.0,112390.0,0.84940072]
[1756923797497,0.17854271,112400.0,112390.0,0.69912072]
[1756923797728,0.18373271,112400.0,112390.0,0.84940072]
[1756923797981,0.18373271,112400.0,112390.0,0.82265776]
[1756923799968,0.00579677,112400.0,112390.0,0.82265776]
[1756923800189,0.00371677,112400.0,112390.0,0.82265776]
[1756923800443,0.18165271,112400.0,112390.0,0.67237776]
[1756923800624,0.18165271,112400.0,112390.0,0.82261776]
[1756923800827,0.00371677,112400.0,112390.0,0.82261776]
[1756923802674,0.18165271,112400.0,112390.0,0.82261776]
[1756923803036,0.00371677,112400.0,112390.0,0.82261776]
[1756923803238,0.18165271,112400.0,112390.0,0.82261776]
[1756923804055,0.18165271,112400.0,112390.0,0.67237776]
[1756923804265,0.18373271,112400.0,112390.0,0.82261776]
[1756923804490,0.18373271,112400.0,112390.0,0.67026776]
[1756923804683,0.18373271,112400.0,112390.0,0.82050776]
[1756923805031,0.18373271,112400.0,112390.0,0.64255599]
[1756923805349,0.18373271,112400.0,112390.0,0.0004]
[1756923805622,0.18373271,112400.0,112390.0,0.15064]
[1756923805623,0.66305412,112400.0,112390.0,0.15064]
[1756923805975,0.66305412,112400.0,112390.0,0.0004]
[1756923806392,0.66244735,112400.0,112390.0,0.0004]
[1756923806598,0.66244735,112400.0,112390.0,0.0014]
[1756923806802,0.66444735,112400.0,112390.0,0.0014]
[1756923807025,0.66544735,112400.0,112390.0,0.0014]
[1756923808750,0.21095594,112400.0,112380.0,0.0004]
[1756923808960,1.02210318,112390.0,112380.0,0.0004]
[1756923809393,0.54797177,112390.0,112380.0,0.0004]
[1756923809591,1.05404091,112390.0,112380.0,0.0004]
[1756923809794,0.5747195,112390.0,112380.0,0.0004]
[1756923809996,1.05404091,112390.0,112380.0,0.0004]
[1756923810402,1.05404091,112390.0,112380.0,0.00186952]
[1756923810403,1.05504091,112390.0,112380.0,0.00186952]
[1756923811072,0.5767195,112390.0,112380.0,0.00186952]
[1756923811283,1.20864091,112390.0,112380.0,0.00186952]
[1756923812362,1.39247289,112390.0,112380.0,0.00186952]
[1756923813072,1.23987289,112390.0,112380.0,0.00186952]
[1756923813560,1.39243289,112390.0,112380.0,0.00186952]
[1756923814453,1.39247289,112390.0,112380.0,0.00186952]
[1756923814673,0.91315148,112390.0,112380.0,0.00186952]
[1756923814884,1.39247289,112390.0,112380.0,0.00186952]
[1756923819513,1.54080095,112390.0,112380.0,0.00186952]
[1756923819730,1.54064095,112390.0,112380.0,0.00186952]
[1756923823250,1.54060095,112390.0,112380.0,0.00186952]
[1756923823680,1.54056095,112390.0,112380.0,0.00186952]
[1756923823807,1.38820095,112390.0,112380.0,0.00186952]
[1756923824007,1.57222693,112390.0,112380.0,0.00186952]
[1756923825963,0.70030147,112390.0,112380.0,0.00186952]
[1756923826173,1.57222693,112390.0,112380.0,0.00186952]
[1756923826417,1.36337095,112390.0,112380.0,0.00186952]
[1756923826660,0.5466995,112390.0,112380.0,0.00688952]
[1756923826862,1.05876223,112390.0,112380.0,0.00688952]
[1756923827296,0.6989795,112390.0,112380.0,0.00688952]
[1756923827517,1.05876223,112390.0,112380.0,0.00688952]
[1756923828773,0.90648223,112390.0,112380.0,0.00688952]
[1756923828984,0.6990195,112390.0,112380.0,0.00688952]
[1756923829197,1.05876223,112390.0,112380.0,0.00393952]
[1756923829649,0.6989795,112390.0,112380.0,0.00393952]
[1756923829869,0.6989795,112390.0,112380.0,0.00911411]
[1756923830785,1.05876223,112390.0,112380.0,0.00911411]
[1756923831664,0.2066995,112390.0,112380.0,0.54686444]
[1756923831907,0.17995177,112390.0,112380.0,0.54463985]
[1756923832409,0.17995177,112390.0,112380.0,0.18485712]
[1756923832627,0.17995177,112390.0,112380.0,0.54463985]
[1756923833028,0.17995177,112390.0,112380.0,0.36667225]
[1756923833421,0.17995177,112390.0,112380.0,0.54463985]
[1756923833621,0.17995177,112390.0,112380.0,0.00688952]
[1756923834184,0.17995177,112390.0,112380.0,0.00911411]
[1756923835130,0.17995177,112390.0,112380.0,0.40911411]
[1756923835325,0.17995177,112390.0,112380.0,0.40688952]
[1756923838033,0.17995177,112390.0,112380.0,0.00688952]
[1756923838217,0.17995177,112390.0,112380.0,0.00911411]
[1756923838652,0.002,112390.0,112380.0,1.39856316]
[1756923838929,0.002,112390.0,112380.0,1.39633857]
[1756923841984,0.002,112390.0,112380.0,1.54825857]
[1756923843976,0.002,112390.0,112380.0,1.54817857]
[1756923848756,0.002,112390.0,112380.0,1.18839584]
[1756923848981,0.002,112390.0,112380.0,1.03655584]
[1756923849205,0.5448245,112390.0,112380.0,0.00186952]
[1756923849427,0.5448245,112390.0,112380.0,0.00409411]
[1756923850497,0.5448245,112390.0,112380.0,0.00186952]
[1756923851581,0.57157485,112390.0,112380.0,0.00186952]
[1756923854590,0.72305485,112390.0,112380.0,0.00186952]
[1756923854930,0.72297485,112390.0,112380.0,0.00186952]
[1756923858149,0.57157485,112390.0,112380.0,0.00186952]
[1756923858334,0.72289485,112390.0,112380.0,0.00186952]
[1756923860181,1.08267758,112390.0,112380.0,0.00186952]
[1756923860389,1.06289485,112390.0,112380.0,0.00186952]
[1756923861666,1.15481084,112390.0,112380.0,0.00186952]
[1756923862637,1.24672683,112390.0,112380.0,0.00186952]
[1756923863052,1.15481084,112390.0,112380.0,0.00186952]
[1756923863291,0.79482811,112390.0,112380.0,0.00186952]
[1756923863487,1.15461084,112390.0,112380.0,0.00186952]
[1756923864727,1.51439357,112390.0,112380.0,0.00186952]
[1756923865682,0.79482811,112390.0,112380.0,0.00186952]
[1756923865900,0.8867441,112390.0,112380.0,0.00186952]
[1756923866095,1.60530956,112390.0,112380.0,0.00086952]
[1756923866324,1.60630956,112390.0,112380.0,0.00086952]
[1756923866559,1.58179357,112390.0,112380.0,0.00086952]
[1756923866780,1.60562357,112390.0,112380.0,0.00086952]
[1756923867531,1.60462357,112390.0,112380.0,0.00086952]
[1756923867752,1.60562357,112390.0,112380.0,0.00086952]
[1756923867952,1.45450357,112390.0,112380.0,0.00086952]
[1756923868111,1.60554357,112390.0,112380.0,0.00086952]
[1756923868505,1.69741956,112390.0,112380.0,0.00086952]
[1756923869253,1.24568084,112390.0,112380.0,0.00086952]
[1756923869474,1.60546357,112390.0,112380.0,0.00086952]
[1756923869699,1.49868775,112390.0,112380.0,0.00086952]
[1756923869886,1.11607502,112390.0,112380.0,0.00086952]
[1756923870821,0.96511502,112390.0,112380.0,0.00086952]
[1756923871051,1.11603502,112390.0,112380.0,0.00086952]
[1756923872775,1.47581775,112390.0,112380.0,0.00086952]
[1756923873782,1.32489775,112390.0,112380.0,0.00086952]
[1756923874018,1.47585775,112390.0,112380.0,0.00086952]
[1756923877805,1.47577775,112390.0,112380.0,0.00086952]
[1756923877997,1.32489775,112390.0,112380.0,0.00086952]
[1756923878194,0.75613229,112390.0,112380.0,0.00086952]
[1756923878408,1.11591502,112390.0,112380.0,0.00086952]
[1756923879570,1.23577015,112390.0,112380.0,0.00086952]
[1756923880858,1.08497015,112390.0,112380.0,0.00086952]
[1756923881112,1.23573015,112390.0,112380.0,0.00285952]
[1756923881319,0.75610229,112390.0,112380.0,0.00285952]
[1756923881524,1.23574015,112390.0,112380.0,0.00086952]
[1756923882833,1.08498015,112390.0,112380.0,0.00086952]
[1756923883056,1.23574015,112390.0,112380.0,0.00086952]
[1756923884281,1.32765614,112390.0,112380.0,0.00086952]
[1756923884497,1.23574015,112390.0,112380.0,0.00086952]
[1756923885175,1.28073897,112390.0,112380.0,0.00086952]
[1756923885414,1.34367811,112390.0,112380.0,1e-08]
[1756923885660,1.32126653,112390.0,112380.0,1e-08]
[1756923886242,1.31926653,112390.0,112380.0,1e-08]
[1756923886439,1.41518252,112390.0,112380.0,1e-08]
[1756923886620,1.41618252,112390.0,112380.0,1e-08]
[1756923887279,1.41518252,112390.0,112380.0,1e-08]
[1756923887501,1.26642252,112390.0,112380.0,1e-08]
[1756923887720,1.39596037,112390.0,112380.0,1e-08]
[1756923887940,0.91632251,112390.0,112380.0,1e-08]
[1756923888142,1.22102037,112390.0,112380.0,1e-08]
[1756923888566,1.23978015,112390.0,112380.0,1e-08]
[1756923889088,1.23982015,112390.0,112380.0,1e-08]
[1756923889539,1.08898015,112390.0,112380.0,1e-08]
[1756923889749,1.23978015,112390.0,112380.0,1e-08]
[1756923890186,1.25894856,112390.0,112380.0,1e-08]
[1756923890397,1.37180337,112390.0,112380.0,1e-08]
[1756923894453,1.37180173,112390.0,112380.0,1e-08]
[1756923897462,0.74136387,112390.0,112380.0,1e-08]
[1756923897659,1.27972574,112390.0,112380.0,1e-08]
[1756923899293,0.80008788,112390.0,112380.0,1e-08]
[1756923899491,1.27972574,112390.0,112380.0,1e-08]
[1756923900278,0.77400906,112390.0,112380.0,0.00199001]
[1756923900481,1.23448015,112390.0,112380.0,0.00199001]
[1756923900894,1.23648015,112390.0,112380.0,0.00199001]
[1756923901097,1.23962015,112390.0,112380.0,0.00199001]
[1756923901300,1.08902015,112390.0,112380.0,0.00199001]
[1756923901506,1.23448015,112390.0,112380.0,0.00199001]
[1756923901910,1.23962015,112390.0,112380.0,0.00199001]
[1756923902118,1.23962015,112390.0,112380.0,1e-08]
[1756923903056,0.75484229,112390.0,112380.0,0.00199001]
[1756923903262,1.33153614,112390.0,112380.0,1e-08]
[1756923903463,1.33153614,112390.0,112380.0,0.00199001]
[1756923903666,1.33153614,112390.0,112380.0,1e-08]
[1756923903936,1.23962015,112390.0,112380.0,0.00199001]
[1756923904146,1.08388015,112390.0,112380.0,0.00199001]